[Event "Championnat du monde jeunes U10"]
[Date "2024.11.23"]
[White "Andre, Tomas"]
[Black "Nguyen Minh"]
[WhiteElo "1928"]
[BlackElo "1760"]
[Round "8.24"]
[Result "1-0"]
[TimeControl "5400+30"]

1. e4 {[%clk 1:29:57]} 1... c5 {[%clk 1:30:46]} 2. Nf3 {[%clk 1:30:04]} 2... Nf6
{[%clk 1:31:01]} 3. Nc3 {[%clk 1:29:57]} 3... d5 {[%clk 1:31:26]} 4. exd5 {[%clk
1:30:06]} 4... Nxd5 {[%clk 1:31:46]} 5. Bb5+ {[%clk 1:30:19]} 5... Bd7 {[%clk
1:32:05]} 6. Ne5 {[%clk 1:29:36]} 6... Nf6 {[%clk 1:26:20]} 7. Qf3 {[%clk
1:28:53]} 7... Qc7 {[%clk 1:25:31]} 8. Qg3 {[%clk 1:27:25]} 8... Qd6 {[%clk
1:19:50]} 9. O-O {[%clk 1:09:38]} 9... a6 {[%clk 1:09:08]} 10. Nxd7 {[%clk
1:05:48]} 10... Nbxd7 {[%clk 1:07:52]} 11. Qxd6 {[%clk 1:06:04]} 11... exd6
{[%clk 1:08:20]} 12. Re1+ {[%clk 1:06:18]} 12... Kd8 {[%clk 1:08:11]} 13. Be2
{[%clk 1:05:06]} 13... Ne5 {[%clk 0:57:49]} 14. d3 {[%clk 1:03:44]} 14... h6
{[%clk 0:50:09]} 15. Ne4 {[%clk 0:59:05]} 15... Nfd7 {[%clk 0:46:32]} 16. f4
{[%clk 0:57:57]} 16... Nc6 {[%clk 0:46:33]} 17. c3 {[%clk 0:57:56]} 17... g6
{[%clk 0:41:04]} 18. Bf3 {[%clk 0:55:52]} 18... Be7 {[%clk 0:36:48]} 19. g3
{[%clk 0:52:59]} 19... Nb6 {[%clk 0:30:23]} 20. b3 {[%clk 0:50:42]} 20... d5
{[%clk 0:27:29]} 21. Nf2 {[%clk 0:50:59]} 21... Bf6 {[%clk 0:27:45]} 22. Bb2
{[%clk 0:51:09]} 22... h5 {[%clk 0:27:22]} 23. Rac1 {[%clk 0:46:46]} 23... Rc8
{[%clk 0:23:51]} 24. h4 {[%clk 0:40:14]} 24... Ne7 {[%clk 0:23:10]} 25. Nh3
{[%clk 0:39:35]} 25... Nf5 {[%clk 0:23:07]} 26. Kg2 {[%clk 0:38:35]} 26... Kd7
{[%clk 0:19:55]} 27. Ng5 {[%clk 0:38:47]} 27... Bxg5 {[%clk 0:20:15]} 28. fxg5
{[%clk 0:38:23]} 28... Rhe8 {[%clk 0:18:45]} 29. c4 {[%clk 0:37:13]} 29... Kd6
{[%clk 0:18:54]} 30. Kf2 {[%clk 0:36:41]} 30... Re6 {[%clk 0:15:22]} 31. Rxe6+
{[%clk 0:33:59]} 31... fxe6 {[%clk 0:15:36]} 32. Re1 {[%clk 0:34:26]} 32... Nd7
{[%clk 0:13:39]} 33. cxd5 {[%clk 0:30:50]} 33... exd5 {[%clk 0:14:03]} 34. Bc1
{[%clk 0:31:15]} 34... Nd4 {[%clk 0:12:27]} 35. Bf4+ {[%clk 0:31:41]} 35... Kc6
{[%clk 0:12:49]} 36. Re7 {[%clk 0:31:50]} 36... Nf8 {[%clk 0:10:14]} 37. Rf7
{[%clk 0:27:31]} 37... Nxf3 {[%clk 0:06:41]} 38. Kxf3 {[%clk 0:27:46]} 38... b5
{[%clk 0:03:51]} 39. Rf6+ {[%clk 0:26:24]} 39... Kb7 {[%clk 0:04:08]} 40. Bd6
{[%clk 0:25:24]} 40... Nd7 {[%clk 0:04:33]} 41. Rxg6 {[%clk 0:25:28]} 41... c4
{[%clk 0:04:55]} 42. dxc4 {[%clk 0:24:51]} 42... dxc4 {[%clk 0:05:20]} 43. bxc4
{[%clk 0:24:23]} 43... bxc4 {[%clk 0:05:48]} 44. Ke2 {[%clk 0:24:34]} 44... c3
{[%clk 0:06:01]} 45. Kd1 {[%clk 0:24:54]} 45... Nb6 {[%clk 0:05:48]} 46. Kc1
{[%clk 0:21:02]} 46... Nc4 {[%clk 0:04:59]} 47. Bf4 {[%clk 0:20:58]} 47... Na3
{[%clk 0:03:53]} 48. Rg7+ {[%clk 0:20:36]} 48... Kb6 {[%clk 0:04:03]} 49. Rc7
{[%clk 0:20:32]} 49... Re8 {[%clk 0:02:36]} 50. Rxc3 {[%clk 0:20:26]} 50... Nb5
{[%clk 0:03:02]} 51. Re3 {[%clk 0:20:28]} 51... Rc8+ {[%clk 0:03:23]} 52. Kd2
{[%clk 0:20:39]} 52... Kc6 {[%clk 0:01:40]} 53. a4 {[%clk 0:20:47]} 53... Nd4
{[%clk 0:01:58]} 54. Rc3+ {[%clk 0:21:12]} 54... Kb7 {[%clk 0:02:19]} 55. Rxc8
{[%clk 0:21:36]} 55... Kxc8 {[%clk 0:02:46]} 56. g6 {[%clk 0:21:49]} 56... Nf5
{[%clk 0:03:00]} 57. g4 {[%clk 0:21:24]} 57... hxg4 {[%clk 0:01:52]} 58. h5
{[%clk 0:21:47]} 58... Kd7 {[%clk 0:00:37]} 59. h6 {[%clk 0:21:55]} 1-0

[Variant "Standard"]
[Site "Europe Echecs"]

[Event "Championnat du monde jeunes U10"]
[Date "2024.11.23"]
[White "Ejsymont, Eryk"]
[Black "Kais, Kristofer"]
[WhiteElo "1910"]
[BlackElo "1723"]
[Round "8.25"]
[Result "1/2-1/2"]
[TimeControl "5400+30"]

1. e4 {[%clk 1:30:57]} 1... c6 {[%clk 1:30:49]} 2. d4 {[%clk 1:31:15]} 2... d5
{[%clk 1:31:12]} 3. e5 {[%clk 1:31:13]} 3... c5 {[%clk 1:31:36]} 4. c3 {[%clk
1:29:55]} 4... Nc6 {[%clk 1:31:52]} 5. Be3 {[%clk 1:26:51]} 5... cxd4 {[%clk
1:26:44]} 6. cxd4 {[%clk 1:27:02]} 6... Bf5 {[%clk 1:24:30]} 7. Nc3 {[%clk
1:18:45]} 7... e6 {[%clk 1:24:23]} 8. Qb3 {[%clk 1:16:44]} 8... Qd7 {[%clk
1:14:05]} 9. Nf3 {[%clk 1:06:33]} 9... Bg6 {[%clk 1:05:59]} 10. Be2 {[%clk
1:00:32]} 10... Nge7 {[%clk 1:04:10]} 11. Nh4 {[%clk 0:54:10]} 11... Nf5 {[%clk
1:01:38]} 12. Nxf5 {[%clk 0:54:39]} 12... Bxf5 {[%clk 1:01:54]} 13. O-O {[%clk
0:50:59]} 13... Be7 {[%clk 1:01:01]} 14. Rac1 {[%clk 0:48:15]} 14... O-O {[%clk
0:54:26]} 15. f4 {[%clk 0:42:17]} 15... Na5 {[%clk 0:46:47]} 16. Qd1 {[%clk
0:41:51]} 16... Nc4 {[%clk 0:41:16]} 17. Bxc4 {[%clk 0:37:51]} 17... dxc4 {[%clk
0:41:03]} 18. Qf3 {[%clk 0:33:45]} 18... Bd3 {[%clk 0:36:46]} 19. Rfd1 {[%clk
0:26:30]} 19... Rfd8 {[%clk 0:33:26]} 20. a4 {[%clk 0:17:31]} 20... Bb4 {[%clk
0:29:02]} 21. g4 {[%clk 0:12:15]} 21... Bxc3 {[%clk 0:20:50]} 22. bxc3 {[%clk
0:11:56]} 22... Qd5 {[%clk 0:16:12]} 23. Qg3 {[%clk 0:10:45]} 23... Be2 {[%clk
0:14:26]} 24. Rd2 {[%clk 0:08:53]} 24... Qf3 {[%clk 0:13:41]} 25. Qxf3 {[%clk
0:09:22]} 25... Bxf3 {[%clk 0:14:04]} 26. h3 {[%clk 0:09:51]} 26... Be4 {[%clk
0:09:59]} 27. Rb2 {[%clk 0:10:12]} 27... b6 {[%clk 0:09:05]} 28. Rb4 {[%clk
0:10:15]} 28... Bd3 {[%clk 0:09:11]} 29. Ra1 {[%clk 0:10:05]} 29... Rd5 {[%clk
0:08:34]} 30. Rb5 {[%clk 0:10:01]} 30... Rad8 {[%clk 0:05:56]} 31. Kf2 {[%clk
0:08:58]} 31... Bc2 {[%clk 0:04:39]} 32. f5 {[%clk 0:05:19]} 32... exf5 {[%clk
0:03:43]} 33. gxf5 {[%clk 0:05:33]} 33... Bxf5 {[%clk 0:03:56]} 34. Rb4 {[%clk
0:04:58]} 34... Bd3 {[%clk 0:03:19]} 35. Rg1 {[%clk 0:03:50]} 35... f6 {[%clk
0:01:41]} 36. Bf4 {[%clk 0:00:38]} 36... Kf7 {[%clk 0:00:56]} 37. Ke3 {[%clk
0:00:52]} 37... g5 {[%clk 0:00:45]} 38. Bh2 {[%clk 0:01:13]} 38... h6 {[%clk
0:00:49]} 39. exf6 {[%clk 0:01:23]} 39... Kxf6 {[%clk 0:00:59]} 40. Be5+ {[%clk
0:01:32]} 40... Kg6 {[%clk 0:00:49]} 41. h4 {[%clk 0:01:29]} 41... Rf8 {[%clk
0:00:52]} 42. hxg5 hxg5 {[%clk 0:01:21]} 43. Rb2 {[%clk 0:02:17]} 43... Rd7
{[%clk 0:00:52]} 44. Rbg2 {[%clk 0:01:50]} 44... Rf5 {[%clk 0:01:07]} 45. Rh2
{[%clk 0:01:33]} 45... Rdf7 {[%clk 0:01:21]} 46. Rh3 {[%clk 0:01:38]} 46... Rf2
{[%clk 0:01:21]} 47. Re1 {[%clk 0:01:04]} 47... g4 {[%clk 0:01:10]} 48. Rg3
{[%clk 0:01:30]} 48... R7f3+ {[%clk 0:01:10]} 49. Rxf3 {[%clk 0:01:57]} 49...
Rxf3+ {[%clk 0:01:34]} 50. Kd2 {[%clk 0:02:26]} 50... Rf2+ {[%clk 0:01:35]} 51.
Ke3 {[%clk 0:02:38]} 51... Rf3+ {[%clk 0:01:58]} 52. Kd2 {[%clk 0:02:49]} 52...
Rf2+ {[%clk 0:01:29]} 53. Ke3 {[%clk 0:03:10]} 1/2-1/2

[Variant "Standard"]
[Site "Europe Echecs"]

[Event "Championnat du monde jeunes U10"]
[Date "2024.11.23"]
[White "Mrozowski, Nikodem"]
[Black "Vardanyan, Armen Art."]
[WhiteElo "1874"]
[BlackElo "1735"]
[Round "8.26"]
[Result "1/2-1/2"]
[TimeControl "5400+30"]

1. e4 {[%clk 1:30:55]} 1... c6 {[%clk 1:30:46]} 2. d4 {[%clk 1:31:20]} 2... d5
{[%clk 1:31:11]} 3. Nc3 {[%clk 1:31:43]} 3... dxe4 {[%clk 1:31:28]} 4. Nxe4
{[%clk 1:32:06]} 4... Nf6 {[%clk 1:31:40]} 5. Nxf6+ {[%clk 1:32:27]} 5... exf6
{[%clk 1:30:49]} 6. Be3 {[%clk 1:32:08]} 6... Bd6 {[%clk 1:30:29]} 7. Bd3 {[%clk
1:31:15]} 7... O-O {[%clk 1:30:13]} 8. Ne2 {[%clk 1:31:07]} 8... Re8 {[%clk
1:30:03]} 9. O-O {[%clk 1:29:55]} 9... Bg4 {[%clk 1:30:23]} 10. c4 {[%clk
1:27:29]} 10... Nd7 {[%clk 1:22:03]} 11. Qc2 {[%clk 1:25:50]} 11... Nf8 {[%clk
1:22:03]} 12. Nc3 {[%clk 1:25:37]} 12... Qc7 {[%clk 1:21:55]} 13. h3 {[%clk
1:24:53]} 13... Bh5 {[%clk 1:17:31]} 14. c5 {[%clk 1:20:29]} 14... Bh2+ {[%clk
1:17:39]} 15. Kh1 {[%clk 1:20:47]} 15... Bf4 {[%clk 1:18:04]} 16. Bxf4 {[%clk
1:19:49]} 16... Qxf4 {[%clk 1:16:51]} 17. d5 {[%clk 1:20:06]} 17... Qd4 {[%clk
1:12:45]} 18. dxc6 {[%clk 1:16:37]} 18... bxc6 {[%clk 1:13:06]} 19. Ne4 {[%clk
1:16:28]} 19... Bg6 {[%clk 1:13:08]} 20. Rfe1 {[%clk 1:16:09]} 20... Rad8 {[%clk
1:10:24]} 21. Re3 {[%clk 1:10:29]} 21... Bxe4 {[%clk 1:05:41]} 22. Bxe4 {[%clk
1:09:52]} 22... Re6 {[%clk 1:05:36]} 23. Rae1 {[%clk 1:06:29]} 23... Qd2 {[%clk
1:01:56]} 24. Qxd2 {[%clk 1:02:39]} 24... Rxd2 {[%clk 1:02:17]} 25. R3e2 {[%clk
1:03:01]} 25... Rxe2 {[%clk 1:01:08]} 26. Rxe2 {[%clk 1:02:53]} 26... g6 {[%clk
1:00:00]} 27. g4 {[%clk 1:02:19]} 27... a5 {[%clk 0:57:08]} 28. a3 {[%clk
1:00:21]} 28... Nd7 {[%clk 0:51:46]} 29. b4 {[%clk 1:00:29]} 29... axb4 {[%clk
0:52:04]} 30. axb4 {[%clk 1:00:57]} 30... Kf8 {[%clk 0:50:57]} 31. f4 {[%clk
0:57:58]} 31... f5 {[%clk 0:49:02]} 32. gxf5 {[%clk 0:58:19]} 32... gxf5 {[%clk
0:49:27]} 33. Bf3 {[%clk 0:58:11]} 33... Rxe2 {[%clk 0:49:47]} 34. Bxe2 {[%clk
0:58:39]} 34... Nf6 {[%clk 0:49:07]} 35. Bd3 {[%clk 0:56:00]} 35... Nd5 {[%clk
0:49:21]} 36. Bxf5 {[%clk 0:56:01]} 36... Nxb4 {[%clk 0:49:27]} 37. Kg2 {[%clk
0:55:21]} 37... Na6 {[%clk 0:49:32]} 38. Bxh7 {[%clk 0:54:33]} 38... Nxc5 {[%clk
0:49:59]} 39. Kf3 {[%clk 0:54:50]} 39... Ne6 {[%clk 0:49:50]} 40. h4 {[%clk
0:52:55]} 40... Kg7 {[%clk 0:49:46]} 41. Bd3 {[%clk 0:52:43]} 41... Kh6 {[%clk
0:49:51]} 42. Kg4 {[%clk 0:52:55]} 42... Nd4 {[%clk 0:50:03]} 43. f5 {[%clk
0:52:04]} 43... f6 {[%clk 0:50:26]} 44. Be4 {[%clk 0:52:00]} 44... c5 {[%clk
0:50:55]} 45. Bd5 {[%clk 0:52:22]} 45... Nxf5 {[%clk 0:51:06]} 46. Kxf5 {[%clk
0:50:59]} 46... Kh5 {[%clk 0:50:44]} 47. Kxf6 {[%clk 0:51:15]} 47... c4 {[%clk
0:50:48]} 48. Be4 {[%clk 0:51:26]} 48... c3 {[%clk 0:51:06]} 49. Bc2 {[%clk
0:51:52]} 49... Kxh4 {[%clk 0:51:26]} 50. Ke5 {[%clk 0:52:18]} 50... Kh5 {[%clk
0:51:49]} 51. Kd4 {[%clk 0:52:42]} 51... Kh6 {[%clk 0:52:19]} 52. Bh7 {[%clk
0:53:01]} 52... Kg7 {[%clk 0:52:37]} 53. Bg6 {[%clk 0:53:22]} 53... Kh6 {[%clk
0:53:02]} 54. Kxc3 1/2-1/2

[Variant "Standard"]
[Site "Europe Echecs"]

[Event "Championnat du monde jeunes U10"]
[Date "2024.11.23"]
[White "Skouroupathis, Kyriakos"]
[Black "Wang, Rocky"]
[WhiteElo "1695"]
[BlackElo "1853"]
[Round "8.27"]
[Result "1-0"]
[TimeControl "5400+30"]

1. Nc3 {[%clk 1:30:57]} 1... c5 {[%clk 1:29:41]} 2. e4 {[%clk 1:31:19]} 2... Nc6
{[%clk 1:30:07]} 3. Nge2 {[%clk 1:31:39]} 3... e5 {[%clk 1:23:07]} 4. Ng3 {[%clk
1:31:41]} 4... Nf6 {[%clk 1:21:45]} 5. Bc4 {[%clk 1:31:24]} 5... d6 {[%clk
1:20:50]} 6. d3 {[%clk 1:28:43]} 6... Be7 {[%clk 1:18:52]} 7. Nh5 {[%clk
1:22:04]} 7... O-O {[%clk 1:11:49]} 8. O-O {[%clk 1:15:55]} 8... Be6 {[%clk
1:05:35]} 9. Nd5 {[%clk 1:01:25]} 9... Bxd5 {[%clk 0:59:02]} 10. Nxf6+ {[%clk
1:01:24]} 10... Bxf6 {[%clk 0:58:06]} 11. Bxd5 {[%clk 1:00:33]} 11... Qd7 {[%clk
0:56:36]} 12. c3 {[%clk 0:54:58]} 12... Ne7 {[%clk 0:55:21]} 13. Qb3 {[%clk
0:52:40]} 13... Nxd5 {[%clk 0:50:13]} 14. Qxd5 {[%clk 0:52:09]} 14... b5 {[%clk
0:40:32]} 15. Be3 {[%clk 0:46:27]} 15... Rac8 {[%clk 0:38:44]} 16. h3 {[%clk
0:45:07]} 16... Rfd8 {[%clk 0:34:02]} 17. Rac1 {[%clk 0:34:05]} 17... c4 {[%clk
0:27:29]} 18. Rfd1 {[%clk 0:27:43]} 18... a6 {[%clk 0:24:59]} 19. dxc4 {[%clk
0:25:26]} 19... Rxc4 {[%clk 0:25:13]} 20. b3 {[%clk 0:20:06]} 20... Rc6 {[%clk
0:23:25]} 21. c4 {[%clk 0:20:06]} 21... b4 {[%clk 0:22:24]} 22. c5 {[%clk
0:13:44]} 22... Be7 {[%clk 0:20:50]} 23. Qc4 {[%clk 0:12:38]} 23... Qb7 {[%clk
0:19:17]} 24. Rd5 {[%clk 0:12:01]} 24... h6 {[%clk 0:15:52]} 25. Qd3 {[%clk
0:10:15]} 25... Rdc8 {[%clk 0:15:50]} 26. Rc4 {[%clk 0:10:08]} 26... dxc5 {[%clk
0:14:47]} 27. Rxe5 {[%clk 0:10:06]} 27... Rd8 {[%clk 0:14:14]} 28. Rd5 {[%clk
0:10:17]} 28... Rcc8 {[%clk 0:11:41]} 29. Rcxc5 {[%clk 0:10:13]} 29... Qb8
{[%clk 0:09:25]} 30. Rxc8 {[%clk 0:09:20]} 30... Qxc8 {[%clk 0:07:54]} 31. Rxd8+
{[%clk 0:09:41]} 31... Bxd8 {[%clk 0:08:19]} 32. Kf1 {[%clk 0:07:24]} 32... Be7
{[%clk 0:07:34]} 33. Ke2 {[%clk 0:07:04]} 33... a5 {[%clk 0:07:13]} 34. Qc4
{[%clk 0:06:48]} 34... Qd7 {[%clk 0:06:51]} 35. Bc5 {[%clk 0:05:41]} 35... Bxc5
{[%clk 0:05:53]} 36. Qxc5 {[%clk 0:06:05]} 36... Qe6 {[%clk 0:06:10]} 37. Qc4
{[%clk 0:05:27]} 37... Qd6 {[%clk 0:05:52]} 38. Qc8+ {[%clk 0:05:37]} 38... Kh7
{[%clk 0:06:17]} 39. Qf5+ {[%clk 0:06:01]} 39... Kg8 {[%clk 0:06:27]} 40. Qxa5
{[%clk 0:06:22]} 40... Qd4 {[%clk 0:06:46]} 41. Qd5 {[%clk 0:06:06]} 41... Qb2+
{[%clk 0:07:07]} 42. Qd2 {[%clk 0:06:30]} 42... Qa3 {[%clk 0:06:27]} 43. Kd1
{[%clk 0:04:38]} 43... Qa6 {[%clk 0:05:52]} 44. f3 {[%clk 0:04:40]} 44... Qf1+
{[%clk 0:06:04]} 45. Kc2 {[%clk 0:05:01]} 45... Qa6 {[%clk 0:05:06]} 46. Kb1
{[%clk 0:04:20]} 46... Kh7 {[%clk 0:04:38]} 47. e5 {[%clk 0:03:49]} 47... g6
{[%clk 0:02:55]} 48. f4 {[%clk 0:04:10]} 48... Qb5 {[%clk 0:02:26]} 49. h4
{[%clk 0:03:56]} 49... Kg7 {[%clk 0:02:11]} 50. Kc2 {[%clk 0:03:29]} 50... Qa6
{[%clk 0:02:19]} 51. Kb2 {[%clk 0:03:22]} 51... Qa5 {[%clk 0:01:14]} 52. Qd4
{[%clk 0:02:54]} 52... Qb5 {[%clk 0:00:56]} 53. e6+ {[%clk 0:02:27]} 53... Kf8
{[%clk 0:00:53]} 54. Qd6+ {[%clk 0:02:48]} 54... Kg8 {[%clk 0:01:06]} 55. Qe5
{[%clk 0:02:33]} 55... Qc6 {[%clk 0:00:47]} 56. e7 {[%clk 0:01:44]} 56... Qxg2+
{[%clk 0:00:58]} 57. Kb1 {[%clk 0:02:02]} 57... Qh1+ {[%clk 0:01:07]} 58. Kc2
{[%clk 0:02:24]} 58... Qc6+ {[%clk 0:00:40]} 59. Kd3 {[%clk 0:02:37]} 59... Qe8
1-0

[Variant "Standard"]
[Site "Europe Echecs"]

[Event "Championnat du monde jeunes U10"]
[Date "2024.11.23"]
[White "Melkonyan, Davit"]
[Black "DAmato, Raffaele"]
[WhiteElo "1842"]
[BlackElo "1695"]
[Round "8.28"]
[Result "1-0"]
[TimeControl "5400+30"]

1. e4 {[%clk 1:30:58]} 1... e6 {[%clk 1:30:08]} 2. d4 {[%clk 1:31:27]} 2... d5
{[%clk 1:30:34]} 3. Nd2 {[%clk 1:31:52]} 3... Nf6 {[%clk 1:30:11]} 4. e5 {[%clk
1:31:52]} 4... Nfd7 {[%clk 1:30:36]} 5. Ndf3 {[%clk 1:31:48]} 5... c5 {[%clk
1:30:23]} 6. c3 {[%clk 1:31:55]} 6... Nc6 {[%clk 1:29:31]} 7. Bd3 {[%clk
1:31:23]} 7... cxd4 {[%clk 1:27:59]} 8. cxd4 {[%clk 1:31:41]} 8... Bb4+ {[%clk
1:27:43]} 9. Bd2 {[%clk 1:31:46]} 9... Bxd2+ {[%clk 1:27:49]} 10. Qxd2 {[%clk
1:32:02]} 10... Qb6 {[%clk 1:27:05]} 11. Ne2 {[%clk 1:31:43]} 11... f5 {[%clk
1:25:50]} 12. O-O {[%clk 1:27:30]} 12... h6 {[%clk 1:24:39]} 13. h4 {[%clk
1:23:25]} 13... Qd8 {[%clk 1:23:07]} 14. Rac1 {[%clk 1:17:20]} 14... a6 {[%clk
1:17:54]} 15. Nf4 {[%clk 1:15:14]} 15... Nf8 {[%clk 1:17:01]} 16. h5 {[%clk
1:08:35]} 16... Rg8 {[%clk 1:13:07]} 17. g3 {[%clk 1:05:48]} 17... g5 {[%clk
1:09:41]} 18. hxg6 {[%clk 1:05:16]} 18... Nxg6 {[%clk 1:10:00]} 19. Nh5 {[%clk
1:05:15]} 19... Rh8 {[%clk 1:07:55]} 20. Be2 {[%clk 1:00:22]} 20... Kf7 {[%clk
1:01:02]} 21. Nf6 {[%clk 0:58:49]} 21... Nce7 {[%clk 0:57:53]} 22. Nh4 {[%clk
0:55:55]} 22... Nxh4 {[%clk 0:52:38]} 23. gxh4 {[%clk 0:55:18]} 23... Ng8 {[%clk
0:50:51]} 24. Bh5+ {[%clk 0:55:07]} 24... Kg7 {[%clk 0:50:22]} 25. Rc7+ {[%clk
0:53:10]} 25... Ne7 {[%clk 0:48:15]} 26. Rfc1 {[%clk 0:52:09]} 26... Kf8 {[%clk
0:46:15]} 27. Qb4 {[%clk 0:51:22]} 27... a5 {[%clk 0:44:42]} 28. Qd6 {[%clk
0:51:37]} 28... Qxd6 {[%clk 0:45:04]} 29. exd6 {[%clk 0:52:02]} 29... Kg7 {[%clk
0:45:12]} 30. Rxe7+ {[%clk 0:52:27]} 1-0

[Variant "Standard"]
[Site "Europe Echecs"]

[Event "Championnat du monde jeunes U10"]
[Date "2024.11.23"]
[White "Nguyen Truong An Khang"]
[Black "Lenkov, Stanislav"]
[WhiteElo "1836"]
[BlackElo "1693"]
[Round "8.29"]
[Result "1-0"]
[TimeControl "5400+30"]

1. d4 {[%clk 1:30:58]} 1... d5 {[%clk 1:30:00]} 2. c4 {[%clk 1:31:09]} 2... e6
{[%clk 1:29:50]} 3. Nc3 Nf6 {[%clk 1:28:50]} 4. cxd5 {[%clk 1:31:47]} 4... exd5
{[%clk 1:28:06]} 5. Bg5 {[%clk 1:32:15]} 5... Be7 {[%clk 1:26:25]} 6. e3 {[%clk
1:32:32]} 6... O-O {[%clk 1:25:42]} 7. Bd3 {[%clk 1:33:00]} 7... c6 {[%clk
1:25:12]} 8. Nge2 {[%clk 1:33:12]} 8... Nbd7 {[%clk 1:24:43]} 9. O-O {[%clk
1:33:22]} 9... h6 {[%clk 1:23:20]} 10. Bh4 {[%clk 1:33:39]} 10... Re8 {[%clk
1:22:58]} 11. f3 {[%clk 1:31:39]} 11... Nb6 {[%clk 1:16:15]} 12. Qc2 {[%clk
1:30:56]} 12... Nc4 {[%clk 1:14:16]} 13. Bxc4 {[%clk 1:26:42]} 13... dxc4 {[%clk
1:14:04]} 14. e4 {[%clk 1:23:38]} 14... Be6 {[%clk 1:12:00]} 15. e5 {[%clk
1:17:38]} 15... Nd5 {[%clk 1:10:44]} 16. Nxd5 {[%clk 1:14:15]} 16... cxd5 {[%clk
1:10:01]} 17. Bxe7 {[%clk 1:13:13]} 17... Qxe7 {[%clk 1:09:54]} 18. f4 {[%clk
1:10:28]} 18... Bg4 {[%clk 1:06:35]} 19. Ng3 {[%clk 1:06:26]} 19... Qh4 {[%clk
1:03:53]} 20. Qd2 {[%clk 1:03:27]} 20... Bd7 {[%clk 0:58:15]} 21. f5 {[%clk
0:57:28]} 21... Qg5 {[%clk 0:56:40]} 22. Rf4 {[%clk 0:53:20]} 22... h5 {[%clk
0:54:00]} 23. Qf2 {[%clk 0:48:48]} 23... c3 {[%clk 0:47:57]} 24. bxc3 {[%clk
0:45:56]} 24... Rac8 {[%clk 0:48:08]} 25. Rf3 {[%clk 0:41:25]} 25... h4 {[%clk
0:46:50]} 26. Ne2 {[%clk 0:41:44]} 26... Qd2 {[%clk 0:46:48]} 27. Re1 {[%clk
0:30:46]} 27... h3 {[%clk 0:39:07]} 28. g4 {[%clk 0:27:05]} 28... Bb5 {[%clk
0:38:31]} 29. Rxh3 {[%clk 0:24:24]} 29... Rc6 {[%clk 0:38:38]} 30. Nf4 {[%clk
0:16:23]} 30... Qxf2+ {[%clk 0:37:40]} 31. Kxf2 {[%clk 0:16:50]} 31... Rec8
{[%clk 0:37:56]} 1-0

[Variant "Standard"]
[Site "Europe Echecs"]

[Event "Championnat du monde jeunes U10"]
[Date "2024.11.23"]
[White "Lee, Yugeon"]
[Black "Akramov, Khasan"]
[WhiteElo "1690"]
[BlackElo "1835"]
[Round "8.30"]
[Result "0-1"]
[TimeControl "5400+30"]

1. d4 {[%clk 1:30:53]} 1... Nf6 {[%clk 1:30:57]} 2. c4 {[%clk 1:30:40]} 2... g6
{[%clk 1:31:22]} 3. Nc3 {[%clk 1:31:06]} 3... d5 {[%clk 1:31:47]} 4. Nf3 {[%clk
1:31:30]} 4... Bg7 {[%clk 1:32:12]} 5. Bg5 {[%clk 1:31:55]} 5... Ne4 {[%clk
1:32:32]} 6. cxd5 {[%clk 1:31:06]} 6... Nxg5 {[%clk 1:32:56]} 7. Nxg5 {[%clk
1:31:31]} 7... e6 {[%clk 1:33:16]} 8. Qd2 {[%clk 1:31:56]} 8... h6 {[%clk
1:33:28]} 9. Nf3 {[%clk 1:32:14]} 9... exd5 {[%clk 1:33:48]} 10. e3 {[%clk
1:32:17]} 10... O-O {[%clk 1:34:04]} 11. Be2 {[%clk 1:32:11]} 11... c6 {[%clk
1:33:19]} 12. O-O {[%clk 1:31:46]} 12... Be6 {[%clk 1:33:39]} 13. Rac1 {[%clk
1:31:36]} 13... Nd7 {[%clk 1:32:23]} 14. b4 {[%clk 1:29:59]} 14... Rc8 {[%clk
1:27:11]} 15. b5 {[%clk 1:28:39]} 15... c5 {[%clk 1:21:29]} 16. dxc5 {[%clk
1:25:36]} 16... Nxc5 {[%clk 1:18:07]} 17. Nd4 {[%clk 1:23:51]} 17... Ne4 {[%clk
1:15:59]} 18. Qd3 {[%clk 1:17:31]} 18... Nxc3 {[%clk 1:05:14]} 19. Rxc3 {[%clk
1:16:38]} 19... Rxc3 {[%clk 1:02:35]} 20. Qxc3 {[%clk 1:17:02]} 20... Qb6 {[%clk
1:01:47]} 21. Qd2 {[%clk 1:07:33]} 21... Bxd4 {[%clk 0:56:12]} 22. exd4 {[%clk
1:07:53]} 22... Rc8 {[%clk 0:56:05]} 23. Rd1 {[%clk 1:01:10]} 23... Kh7 {[%clk
0:52:23]} 24. Bd3 {[%clk 0:54:21]} 24... Qc7 {[%clk 0:45:08]} 25. h4 {[%clk
0:52:09]} 25... Kg7 {[%clk 0:26:52]} 26. Qe3 {[%clk 0:48:27]} 26... h5 {[%clk
0:20:34]} 27. Rd2 {[%clk 0:34:41]} 27... Qd8 {[%clk 0:18:55]} 28. g3 {[%clk
0:20:17]} 28... Qd6 {[%clk 0:13:41]} 29. Kh2 {[%clk 0:09:43]} 29... Bd7 {[%clk
0:10:04]} 30. Qg5 {[%clk 0:08:05]} 30... Re8 {[%clk 0:07:25]} 31. f4 {[%clk
0:06:46]} 31... f5 {[%clk 0:07:16]} 32. Re2 {[%clk 0:06:23]} 32... Rxe2+ {[%clk
0:04:51]} 33. Bxe2 {[%clk 0:06:48]} 33... Qf6 {[%clk 0:05:16]} 34. Qxf6+ {[%clk
0:07:07]} 34... Kxf6 {[%clk 0:05:41]} 35. Kg2 {[%clk 0:06:30]} 35... Ke6 {[%clk
0:05:59]} 36. Kf2 {[%clk 0:06:47]} 36... Kd6 {[%clk 0:06:24]} 37. Ke3 {[%clk
0:04:10]} 37... Kc7 {[%clk 0:06:43]} 38. Kd2 {[%clk 0:04:24]} 38... Kb6 {[%clk
0:07:05]} 39. Bf3 {[%clk 0:04:46]} 39... Be6 {[%clk 0:07:25]} 40. Be2 {[%clk
0:05:12]} 40... Ka5 {[%clk 0:07:15]} 41. Kc3 {[%clk 0:04:22]} 41... Ka4 {[%clk
0:06:18]} 42. Bd3 {[%clk 0:01:12]} 42... b6 {[%clk 0:05:03]} 43. Be2 {[%clk
0:00:40]} 43... Ka3 {[%clk 0:05:25]} 44. Bf3 {[%clk 0:00:53]} 44... Kxa2 {[%clk
0:05:48]} 45. Bg2 {[%clk 0:00:36]} 45... Kb1 {[%clk 0:05:20]} 46. Kb3 Kc1 {[%clk
0:05:44]} 47. Kc3 {[%clk 0:00:33]} 47... Kd1 {[%clk 0:06:00]} 48. Kd3 {[%clk
0:00:47]} 48... Ke1 {[%clk 0:06:26]} 49. Ke3 {[%clk 0:01:12]} 49... Bf7 {[%clk
0:06:49]} 50. Bh3 {[%clk 0:01:36]} 50... Bg8 {[%clk 0:06:20]} 51. Bg2 {[%clk
0:02:01]} 51... Be6 {[%clk 0:06:42]} 52. Bh3 {[%clk 0:02:15]} 52... Bc8 {[%clk
0:07:06]} 53. Bg2 {[%clk 0:00:47]} 53... Bb7 {[%clk 0:07:32]} 54. Bh1 {[%clk
0:01:12]} 54... Kf1 {[%clk 0:07:56]} 55. Bf3 {[%clk 0:01:37]} 55... Kg1 {[%clk
0:08:09]} 0-1

[Variant "Standard"]
[Site "Europe Echecs"]